bitfinex/quotes_SOLUSD_20240902
["timestamp","ask_amount","ask_price","bid_price","bid_amount"]
[1725251168512,13.9104,129.65,129.59,7.7164]
[1725251168827,13.9104,129.65,129.6,45.0]
[1725251169342,7.7138,129.64,129.59,7.7164]
[1725251170041,27.7144,129.63,129.58,7.7171]
[1725251173341,20.0,129.63,129.57,19.2932]
[1725251173640,7.7156,129.61,129.57,19.2932]
[1725251173825,7.84039,129.62,129.57,19.2932]
[1725251174021,27.7156,129.61,129.56,7.7179]
[1725251174228,7.7158,129.61,129.54,19.2988]
[1725251174718,7.7149,129.62,129.56,7.7184]
[1725251175029,20.0,129.61,129.56,7.7184]
[1725251175212,24.07308541,129.6,129.52,15.5087]
[1725251175415,24.07308541,129.6,129.51,19.3027]
[1725251175416,20.12549,129.59,129.51,19.3027]
[1725251176437,7.7179,129.57,129.52,7.7207]
[1725251176936,27.7185,129.56,129.51,27.024]
[1725251177443,7.719,129.55,129.51,19.3027]
[1725251177826,27.7184,129.56,129.51,27.024]
[1725251179148,20.0,129.56,129.52,45.0]
[1725251179649,27.7184,129.56,129.52,45.0]
[1725251180018,20.0,129.56,129.52,45.0]
[1725251180236,7.7171,129.59,129.54,7.7196]
[1725251180448,30.4494,129.61,129.55,45.0]
[1725251180744,14.2776,129.61,129.56,7.7182]
[1725251181158,14.2776,129.61,129.55,27.0157]
[1725251181159,7.7161,129.6,129.55,27.0157]
[1725251181322,7.7161,129.6,129.56,45.0]
[1725251181730,7.7161,129.6,129.56,52.7184]
[1725251182657,14.2772,129.61,129.56,52.7184]
[1725251182953,20.0,129.6,129.56,52.7184]
[1725251183558,27.716,129.6,129.56,52.7184]
[1725251183856,7.7167,129.59,129.55,19.2968]
[1725251184552,7.7167,129.59,129.55,27.0158]
[1725251185955,7.7161,129.6,129.55,27.0158]
[1725251190041,7.7161,129.6,129.56,45.0]
[1725251190452,14.2772,129.61,129.56,52.7183]
[1725251190640,20.0,129.6,129.56,52.7183]
[1725251191868,7.7143,129.63,129.58,7.717]
[1725251192067,22.5808,129.64,129.59,46.54299197]
[1725251192561,13.8767,129.64,129.59,7.7162]
[1725251193565,20.0,129.63,129.59,7.7162]
[1725251194159,27.7145,129.63,129.58,52.7171]
[1725251194343,27.7145,129.63,129.59,7.7166]
[1725251195154,27.7145,129.63,129.58,45.0]
[1725251195443,27.7145,129.63,129.58,52.7167]
[1725251195641,27.7145,129.63,129.59,7.7165]
[1725251195841,20.0,129.63,129.59,7.7165]
[1725251196462,20.0,129.63,129.6,7.716]
[1725251197152,7.7129,129.66,129.61,45.0]
[1725251197343,20.0,129.65,129.62,1.54275289]
[1725251198161,20.0,129.65,129.62,7.7148]
[1725251198465,20.0,129.66,129.62,7.7148]
[1725251200463,20.0,129.66,129.61,19.2879]
[1725251200464,7.7131,129.65,129.61,19.2879]
[1725251200773,7.7143,129.63,129.58,27.0093]
[1725251200946,10.76158767,129.65,129.58,19.2922]
[1725251201264,20.12549,129.64,129.58,19.2922]
[1725251201461,7.7147,129.63,129.58,27.0089]
[1725251201644,20.12549,129.64,129.58,19.2922]
[1725251202272,7.7149,129.62,129.58,19.2922]
[1725251202762,7.7149,129.62,129.58,27.0093]
[1725251202962,7.7143,129.63,129.58,27.0093]
[1725251203164,20.0,129.62,129.58,27.0093]
[1725251204445,7.7138,129.64,129.59,52.7164]
[1725251204760,20.0,129.63,129.6,7.7156]
[1725251204961,20.0,129.66,129.6,7.7156]
[1725251205163,0.12549,129.65,129.6,7.7156]
[1725251206464,7.83849,129.65,129.6,7.7156]
[1725251206666,20.0,129.64,129.6,7.7156]
[1725251207749,27.7137,129.64,129.59,52.7164]
[1725251210763,27.7137,129.64,129.6,7.716]
[1725251211162,20.0,129.64,129.6,7.716]
[1725251211375,16.96748767,129.68,129.61,46.54280892]
[1725251211541,20.0,129.67,129.63,7.7142]
[1725251211746,27.712,129.67,129.63,7.7142]
[1725251212342,27.712,129.67,129.62,27.0013]
[1725251213070,38.47358767,129.67,129.62,27.0013]
[1725251215853,38.47358767,129.67,129.63,7.714]
[1725251216056,20.0,129.67,129.64,52.7132]
[1725251216251,20.0,129.68,129.64,52.7132]
[1725251217147,20.0,129.68,129.64,45.0]
[1725251217347,20.0,129.7,129.64,64.2833]
[1725251217572,20.0,129.73,129.66,7.7119]
[1725251217746,33.83263861,129.72,129.66,7.7119]
[1725251217950,20.0,129.71,129.66,7.7119]
[1725251218149,29.75047656,129.71,129.66,7.7119]
[1725251219252,17.45997656,129.71,129.66,7.7119]
[1725251220167,7.7095,129.71,129.66,7.7119]
[1725251220871,20.0,129.7,129.67,7.7117]
[1725251221057,20.0,129.71,129.67,7.7117]
[1725251222571,27.7096,129.71,129.67,7.7117]
[1725251222778,20.0,129.71,129.67,7.7117]
[1725251223965,27.7096,129.71,129.67,7.7117]
[1725251224477,7.7103,129.7,129.66,19.2804]
[1725251224655,27.7108,129.69,129.64,7.7135]
[1725251224868,7.7108,129.69,129.64,7.7135]
[1725251225076,27.7113,129.68,129.63,26.9991]
[1725251226675,50.64086205,129.68,129.6,19.2893]
[1725251226853,0.12549,129.67,129.6,19.2893]
[1725251227054,0.12549,129.67,129.58,15.5905]
[1725251227055,7.7137,129.64,129.58,15.5905]
[1725251227992,7.7137,129.64,129.59,7.7166]
[1725251228158,20.0,129.63,129.59,7.7166]
[1725251229866,27.7142,129.63,129.58,23.3076]
[1725251230261,30.24555205,129.62,129.51,15.4259]
[1725251230465,24.08216205,129.6,129.51,15.4259]
[1725251230692,20.12549,129.59,129.51,34.7291]
[1725251231962,7.7179,129.57,129.51,42.4499]
[1725251232886,7.7179,129.57,129.52,45.0]
[1725251233055,7.7179,129.57,129.51,42.4499]
[1725251233056,20.12549,129.59,129.51,34.7291]
[1725251233252,20.12549,129.59,129.51,19.3032]
[1725251233473,30.0,129.56,129.51,19.3032]
[1725251233676,20.0,129.55,129.51,19.3032]
[1725251234267,27.7192,129.55,129.51,19.3032]
[1725251234464,30.0,129.54,129.51,19.3032]
[1725251235079,30.0,129.54,129.52,7.7207]
[1725251235281,30.0,129.54,129.52,45.0]
[1725251235488,7.7182,129.57,129.52,45.0]
[1725251235780,20.0,129.56,129.52,45.0]
[1725251237086,27.7186,129.56,129.51,27.0245]
[1725251237460,27.7186,129.56,129.52,52.7202]
[1725251237461,20.0,129.56,129.52,52.7202]
[1725251238875,20.0,129.56,129.53,9.26385733]
[1725251239166,20.0,129.57,129.54,45.0]
[1725251241865,27.7178,129.57,129.52,7.7207]
[1725251244571,27.7178,129.57,129.53,52.7201]
[1725251244777,20.0,129.57,129.53,52.7201]
[1725251245377,7.7163,129.6,129.55,7.7188]
[1725251245587,20.0,129.59,129.56,46.543366]
[1725251245770,20.0,129.59,129.56,45.0]
[1725251248191,7.7155,129.61,129.56,52.7183]
[1725251248487,27.7162,129.6,129.55,19.2966]
[1725251248988,7.7167,129.59,129.55,27.0154]
[1725251249162,20.0,129.6,129.55,20.84021535]
[1725251249363,20.0,129.6,129.55,19.2966]
[1725251250378,27.7164,129.6,129.55,27.0155]
[1725251253284,27.7164,129.6,129.55,19.2966]
[1725251253495,27.7164,129.6,129.56,52.7183]
[1725251254592,20.0,129.6,129.56,52.7183]
[1725251254894,20.0,129.6,129.57,7.7176]
[1725251256684,20.0,129.61,129.57,7.7176]
[1725251257088,27.7156,129.61,129.56,52.7184]
[1725251259891,27.7156,129.61,129.56,45.0]
[1725251260085,27.7156,129.61,129.57,7.7177]
[1725251264198,20.0,129.61,129.58,45.0]
[1725251264387,57.91703016,129.64,129.59,7.7166]
[1725251264593,17.80596811,129.64,129.58,64.293]
[1725251264896,17.80596811,129.64,129.59,1.54291635]
[1725251265194,17.80596811,129.64,129.58,64.293]
[1725251265497,7.7131,129.65,129.58,70.5907]
[1725251265894,20.0,129.64,129.6,7.7158]
[1725251266201,30.09186811,129.64,129.6,7.7158]
[1725251266581,37.80556811,129.64,129.6,7.7158]
[1725251269386,37.80556811,129.64,129.59,7.7165]
[1725251270205,47.4382184,129.64,129.59,7.7165]
[1725251270413,7.7144,129.63,129.59,7.7165]
[1725251270806,20.0,129.62,129.59,7.7165]
[1725251274586,20.0,129.62,129.59,9.25957904]
[1725251276611,20.0,129.62,129.59,7.7165]
[1725251278111,20.0,129.62,129.59,9.25952949]
[1725251278289,22.6771,129.68,129.62,7.7147]
[1725251278491,7.7126,129.66,129.61,9.25811214]
[1725251278720,20.0,129.65,129.61,9.25811214]
[1725251280285,10.09186811,129.68,129.61,15.55581214]
[1725251280520,10.09186811,129.68,129.63,19.2848]
[1725251281020,9.63265029,129.66,129.6,19.2899]
[1725251281188,3.37148019,129.65,129.6,19.2899]
[1725251281390,7.7142,129.63,129.59,7.7165]
[1725251281610,17.34645029,129.64,129.59,7.7165]
[1725251281812,20.0,129.63,129.59,7.7165]
[1725251284789,9.63265029,129.62,129.57,19.2938]
[1725251284988,20.0,129.61,129.57,27.0116]
[1725251290528,20.0,129.61,129.57,28.55483496]
[1725251291913,20.0,129.61,129.58,1.54323019]
[1725251292122,20.0,129.61,129.59,1.54323131]
[1725251292312,20.0,129.62,129.59,1.54323131]
[1725251292516,20.0,129.62,129.58,52.717]
[1725251292701,20.0,129.62,129.59,1.54309316]
[1725251293216,20.0,129.62,129.6,1.54307502]
[1725251293531,7.7137,129.64,129.6,7.7159]
[1725251293532,20.0,129.63,129.6,7.7159]
[1725251293734,20.0,129.63,129.59,7.7165]
[1725251296111,20.0,129.63,129.59,9.25948174]
[1725251297118,20.0,129.63,129.59,7.7165]
[1725251297427,10.09186811,129.65,129.61,7.715]
[1725251297734,20.0,129.64,129.62,1.54278571]
[1725251298434,20.0,129.64,129.61,7.715]
[1725251300452,17.34385029,129.69,129.63,7.7137]
[1725251300733,10.09186811,129.68,129.63,7.7137]
[1725251300921,20.0,129.67,129.63,7.7137]
[1725251302811,37.80366811,129.67,129.63,7.7137]
[1725251303013,37.80366811,129.67,129.62,7.7147]
[1725251303209,37.80366811,129.67,129.62,23.5906]
[1725251303210,47.4363184,129.67,129.62,23.5906]
[1725251303419,21.7077,129.78,129.66,9.63265029]
[1725251303740,9.63265029,129.77,129.7,19.2751]
[1725251303915,7.706,129.77,129.71,7.7089]
[1725251304122,7.7068,129.76,129.71,7.7089]
[1725251304637,7.7068,129.76,129.7,26.9851]
[1725251304938,20.0,129.75,129.7,26.9851]
[1725251305833,7.7083,129.73,129.67,26.9913]
[1725251306037,20.12549,129.72,129.67,26.9913]
[1725251306943,20.0,129.72,129.68,7.7112]
[1725251307115,20.0,129.72,129.68,9.25321578]
[1725251307516,20.0,129.72,129.68,7.7112]
[1725251308424,20.0,129.72,129.68,9.25321641]
[1725251310120,20.0,129.72,129.68,7.7112]
[1725251312247,20.0,129.72,129.67,26.9914]
[1725251312422,20.0,129.75,129.67,26.9914]
[1725251312748,0.12549,129.74,129.67,26.9914]
[1725251314119,24.04165693,129.72,129.61,15.6457]
[1725251314333,24.04165693,129.7,129.62,7.7148]
[1725251314543,20.12549,129.69,129.62,7.7148]
[1725251314817,20.12549,129.69,129.63,7.7142]
[1725251315431,20.0,129.69,129.64,7.7133]
[1725251315842,20.0,129.71,129.64,7.7133]
[1725251316049,0.12549,129.7,129.64,7.7133]
[1725251316223,7.7107,129.69,129.64,7.7133]
[1725251316423,20.0,129.68,129.64,7.7133]
[1725251320150,20.0,129.68,129.63,19.2847]
[1725251320151,20.0,129.68,129.65,1.54237575]
[1725251320374,20.0,129.71,129.65,1.54237575]
[1725251320656,20.0,129.73,129.65,1.54237575]
[1725251320957,20.0,129.73,129.64,45.0]
[1725251321340,7.7095,129.71,129.66,7.7124]
[1725251321554,20.0,129.7,129.66,7.7124]
[1725251325756,20.0,129.7,129.67,7.7118]
[1725251326058,20.0,129.71,129.68,1.54204319]
[1725251326455,20.0,129.71,129.67,7.7118]
[1725251328137,27.7095,129.71,129.66,7.7123]
[1725251329065,27.7095,129.71,129.66,9.25443381]
[1725251329749,20.0,129.71,129.67,7.7118]
[1725251329945,20.0,129.71,129.68,1.54208469]
[1725251334261,20.0,129.71,129.67,7.7118]
[1725251335553,20.0,129.71,129.67,9.25387157]
[1725251335755,20.0,129.71,129.68,9.25327152]
[1725251335949,20.0,129.71,129.69,7.7106]
[1725251336270,20.0,129.72,129.69,7.7106]
[1725251337464,20.0,129.72,129.67,26.9901]
[1725251337643,20.0,129.72,129.68,45.0]
[1725251338766,27.7091,129.72,129.68,45.0]
[1725251339267,7.7096,129.71,129.67,26.9901]
[1725251339469,7.7096,129.71,129.67,19.2787]
[1725251340370,20.0,129.7,129.67,19.2787]
[1725251342453,34.2941,129.76,129.67,19.2787]
[1725251342454,7.7083,129.73,129.67,19.2787]
[1725251342652,7.7083,129.73,129.68,45.0]
[1725251342974,20.0,129.72,129.68,52.7111]
[1725251344453,27.7091,129.72,129.68,45.0]
[1725251344654,27.7091,129.72,129.67,26.9905]
[1725251344655,20.0,129.72,129.67,26.9905]
[1725251344854,0.12549,129.71,129.67,26.9905]
[1725251345271,0.12549,129.71,129.66,16.4872]
[1725251345499,0.12549,129.71,129.64,26.9968]
[1725251345500,7.7107,129.69,129.64,26.9968]
[1725251345871,7.7102,129.7,129.65,7.7129]
[1725251346066,20.0,129.69,129.65,7.7129]
[1725251346578,20.0,129.69,129.66,1.54226041]
[1725251346748,20.0,129.69,129.66,46.54226041]
[1725251347554,20.0,129.69,129.66,45.0]
[1725251348788,20.0,129.69,129.63,16.2031]
[1725251348789,7.7125,129.66,129.63,16.2031]
[1725251349081,20.0,129.69,129.63,16.2031]
[1725251349256,0.12549,129.68,129.63,16.2031]
[1725251349981,0.12549,129.69,129.63,16.2031]
[1725251350294,7.7113,129.68,129.64,45.0]
[1725251350457,20.0,129.67,129.64,45.0]
[1725251351361,7.83839,129.66,129.61,27.0031]
[1725251351684,29.62283911,129.65,129.58,27.0097]
[1725251351979,7.7149,129.62,129.58,19.2926]
[1725251352181,20.0,129.61,129.58,19.2926]
[1725251355081,20.0,129.61,129.58,27.0096]
[1725251355381,20.0,129.62,129.59,45.0]
[1725251356083,20.0,129.62,129.59,52.7163]
[1725251356388,20.0,129.64,129.59,52.7163]
[1725251356691,20.0,129.65,129.59,52.7163]
[1725251356865,7.83959,129.64,129.59,52.7163]
[1725251357068,27.7143,129.63,129.59,45.0]
[1725251357268,7.7143,129.63,129.59,45.0]
[1725251357475,20.0,129.62,129.59,45.0]
[1725251363371,20.0,129.62,129.59,52.7166]
[1725251363570,20.0,129.63,129.6,7.716]
[1725251363791,20.0,129.64,129.61,45.0]
[1725251365368,20.0,129.64,129.61,52.7153]
[1725251365701,7.7118,129.68,129.61,45.0]
[1725251365872,7.7118,129.68,129.63,7.7142]
[1725251366076,7.7118,129.68,129.64,46.54248719]
[1725251367487,7.7118,129.68,129.64,54.25598719]
[1725251367789,16.57702262,129.69,129.64,52.7135]
[1725251367962,20.0,129.68,129.64,52.7135]
[1725251368592,8.86622262,129.69,129.65,7.7129]
[1725251368773,7.7101,129.7,129.66,45.0]
[1725251369785,20.0,129.69,129.66,45.0]
[1725251370676,27.7108,129.69,129.64,26.9968]
[1725251370881,27.7108,129.69,129.65,45.0]
[1725251373581,27.2108,129.69,129.65,45.0]
[1725251375601,27.2108,129.69,129.65,54.25521861]
[1725251375917,19.5,129.69,129.65,54.25521861]
[1725251377391,19.5,129.69,129.65,52.7128]
[1725251381894,19.5,129.69,129.66,9.25451566]
[1725251382201,20.0,129.7,129.67,45.0]
[1725251383184,29.0536,129.73,129.68,7.7112]
[1725251383383,37.91982262,129.73,129.69,45.0]
[1725251383584,7.7089,129.72,129.68,19.2776]
[1725251384409,20.0,129.71,129.68,19.2776]
[1725251385195,20.0,129.71,129.69,45.0]
[1725251385512,20.0,129.71,129.68,26.9887]
[1725251387513,20.0,129.72,129.69,45.0]
[1725251390308,7.7108,129.69,129.65,19.2821]
[1725251390490,20.0,129.68,129.65,19.2821]
[1725251395213,27.7114,129.68,129.64,7.7135]
[1725251395427,27.7114,129.68,129.65,45.0]
[1725251396306,27.7114,129.68,129.65,52.7125]
[1725251396307,20.0,129.68,129.65,52.7125]
[1725251396503,20.0,129.69,129.65,52.7125]
[1725251398321,20.0,129.69,129.66,1.54218058]
[1725251399187,20.0,129.69,129.65,52.7125]
[1725251402116,20.0,129.69,129.66,20.82228427]
[1725251402303,27.7094,129.72,129.67,45.0]
[1725251402501,7.7094,129.72,129.68,1.54192273]
[1725251403408,7.7094,129.72,129.68,9.25302273]
[1725251403609,29.0537,129.73,129.69,45.0]
[1725251404129,7.7084,129.73,129.69,54.25241336]
[1725251404416,26.19686173,129.74,129.69,52.7106]
[1725251404629,16.57402262,129.74,129.7,1.54169538]
[1725251405004,20.0,129.73,129.7,1.54169538]
[1725251406023,18.5,129.73,129.7,1.54169538]
[1725251406218,50.48873911,129.76,129.7,1.54169538]
[1725251406219,31.22153911,129.76,129.71,9.25101754]
[1725251406520,18.48906173,129.78,129.72,45.0]
[1725251407211,18.48906173,129.78,129.72,52.7088]
[1725251407212,8.86622262,129.78,129.72,52.7088]
[1725251407405,18.48906173,129.78,129.72,52.7088]
[1725251407604,7.7059,129.77,129.72,52.7088]
[1725251408219,20.0,129.76,129.72,52.7088]
[1725251411005,20.0,129.76,129.72,45.0]
[1725251411206,7.83279,129.75,129.71,45.0]
[1725251411405,20.0,129.74,129.71,45.0]
[1725251414612,20.0,129.74,129.71,52.709]
[1725251414820,20.0,129.75,129.71,67.7239]
[1725251415630,20.0,129.75,129.72,1.5413232]
[1725251415926,20.0,129.77,129.72,1.5413232]
[1725251416317,20.0,129.77,129.72,19.2713]
[1725251416630,20.0,129.77,129.73,52.7081]
[1725251416832,16.57022262,129.81,129.76,7.7064]
[1725251417014,8.86622262,129.81,129.77,45.0]
[1725251417731,8.86622262,129.81,129.78,1.54093413]
[1725251417927,7.703,129.82,129.78,1.54093413]
[1725251418123,7.7024,129.83,129.78,9.24623413]
[1725251418431,7.7024,129.83,129.79,45.0]
[1725251418624,7.7024,129.83,129.8,1.54054139]
[1725251418826,32.54672262,129.85,129.79,52.7045]
[1725251419125,16.56782262,129.85,129.79,52.7045]
[1725251419811,20.0,129.84,129.79,52.7045]
[1725251420013,27.7017,129.84,129.79,52.7045]
[1725251420555,27.7017,129.84,129.79,45.0]
[1725251420743,14.75081666,129.83,129.76,34.6928]
[1725251421041,20.0,129.82,129.77,46.54071896]
[1725251421328,20.0,129.82,129.77,45.0]
[1725251421531,20.0,129.82,129.77,54.62283911]
[1725251422432,20.0,129.82,129.78,7.7051]
[1725251422636,20.0,129.82,129.79,45.0]
[1725251422824,20.0,129.82,129.76,15.4275]
[1725251422825,7.7046,129.8,129.76,15.4275]
[1725251423031,20.0,129.79,129.77,45.0]
[1725251423729,20.0,129.8,129.77,45.0]
[1725251425446,29.62283911,129.8,129.72,15.3476]
[1725251425654,7.7059,129.77,129.72,23.0563]
[1725251425821,20.0,129.76,129.72,23.0563]
[1725251427019,20.0,129.76,129.72,34.6184]
[1725251427353,7.83079,129.79,129.73,7.7082]
[1725251427643,27.7054,129.78,129.74,45.0]
[1725251427939,20.0,129.77,129.74,45.0]
[1725251428817,20.0,129.78,129.74,45.0]
[1725251429941,27.7056,129.78,129.74,45.0]
[1725251430153,7.7059,129.77,129.74,45.0]
[1725251430443,20.0,129.76,129.73,45.0]
[1725251430832,20.0,129.76,129.72,42.3272]
[1725251431032,20.0,129.76,129.72,19.2708]
[1725251431033,27.7065,129.76,129.72,19.2708]
[1725251431629,0.12549,129.75,129.67,6.3489]
[1725251431830,7.7089,129.72,129.66,53.13233911]
[1725251432029,27.7097,129.71,129.66,43.5095]
[1725251434039,27.7097,129.71,129.67,45.0]
[1725251436264,20.0,129.71,129.67,52.7118]
[1725251436549,20.0,129.71,129.68,9.25303834]
[1725251436851,20.0,129.72,129.69,45.0]
[1725251438725,20.0,129.72,129.69,52.7106]
[1725251438925,20.0,129.73,129.69,52.7106]
[1725251443831,20.0,129.73,129.69,45.0]
[1725251444158,7.7084,129.73,129.69,45.0]
[1725251444452,20.0,129.72,129.69,45.0]
[1725251447849,20.0,129.72,129.66,16.517]
[1725251448088,19.12028396,129.72,129.65,19.2819]
[1725251448352,7.7109,129.69,129.65,19.2819]
[1725251448533,7.7109,129.69,129.65,26.9949]
[1725251449737,7.7109,129.69,129.66,45.0]
[1725251449939,7.7102,129.7,129.66,45.0]
[1725251450229,20.0,129.69,129.66,45.0]
[1725251451130,20.0,129.69,129.66,52.7124]
[1725251451431,20.0,129.69,129.67,1.54213845]
[1725251453437,20.0,129.69,129.66,52.7124]
[1725251453643,20.0,129.69,129.66,45.0]
[1725251454741,27.7108,129.69,129.66,45.0]
[1725251455858,7.7113,129.68,129.63,15.7934]
[1725251456066,20.0,129.69,129.63,15.7934]
[1725251456067,27.7119,129.67,129.63,15.7934]
[1725251456358,20.0,129.66,129.63,15.7934]
[1725251457467,20.0,129.66,129.64,45.0]
[1725251457840,27.7128,129.66,129.63,45.0]
[1725251458145,27.7128,129.66,129.6,391.1]
[1725251459266,20.0,129.66,129.62,7.7148]
[1725251459470,20.0,129.66,129.63,46.54251167]
[1725251459661,20.0,129.66,129.63,45.0]
[1725251460164,20.0,129.66,129.63,52.7139]
[1725251460374,20.0,129.67,129.63,52.7139]
[1725251460960,23.5117,129.71,129.66,7.7124]
[1725251461158,7.71,129.71,129.67,46.54213129]
[1725251461665,16.17453911,129.72,129.64,22.7438]
[1725251461868,16.17453911,129.72,129.65,45.0]
[1725251462184,7.7101,129.7,129.65,45.0]
[1725251462349,20.0,129.69,129.65,45.0]
[1725251462670,27.7104,129.7,129.65,45.0]
[1725251463668,7.7109,129.69,129.65,45.0]
[1725251463967,20.0,129.68,129.64,7.7131]
[1725251465275,20.0,129.68,129.63,26.9986]
[1725251465441,20.0,129.68,129.64,45.0]
[1725251465645,27.7113,129.68,129.64,45.0]
[1725251469150,27.7113,129.68,129.6,34.4644]
[1725251469151,7.7125,129.66,129.6,34.4644]
[1725251469469,20.0,129.65,129.61,45.0]
[1725251469854,20.0,129.66,129.61,45.0]
[1725251470353,20.0,129.66,129.62,7.7142]
[1725251470678,6.5517,129.72,129.67,7.7117]
[1725251470845,6.5517,129.72,129.68,45.0]
[1725251471873,20.0,129.71,129.68,45.0]
[1725251472070,7.7077,129.74,129.69,7.7106]
[1725251472275,7.7086,129.73,129.7,45.0]
[1725251472480,7.7086,129.73,129.68,45.0]
[1725251473476,20.0,129.72,129.68,45.0]
[1725251473680,24.06704244,129.74,129.68,45.0]
[1725251473886,20.12549,129.73,129.67,45.0]
[1725251474175,7.7089,129.72,129.67,45.0]
[1725251474389,20.0,129.71,129.67,45.0]
[1725251474568,20.0,129.71,129.67,46.54209739]
[1725251474893,20.0,129.71,129.67,45.0]
[1725251475384,20.0,129.71,129.67,52.7113]
[1725251475591,20.0,129.73,129.67,52.7113]
[1725251475775,7.7089,129.72,129.67,52.7113]
[1725251475967,20.0,129.71,129.67,52.7113]
[1725251477894,20.0,129.75,129.68,19.2772]
[1725251478189,20.0,129.75,129.69,46.54167869]
[1725251478384,20.0,129.75,129.69,45.0]
[1725251478590,7.7082,129.74,129.69,45.0]
[1725251478796,20.0,129.73,129.69,45.0]
[1725251478962,27.7085,129.73,129.69,45.0]
[1725251488984,20.0,129.73,129.69,45.0]
[1725251489172,20.0,129.73,129.68,45.0]
[1725251489376,7.7095,129.71,129.68,45.0]
[1725251489602,20.0,129.7,129.67,45.0]
[1725251489980,20.0,129.7,129.67,52.7118]
[1725251490182,20.0,129.7,129.68,7.7111]
[1725251490391,20.0,129.72,129.69,45.0]
[1725251491301,27.709,129.72,129.67,26.9904]
[1725251491595,7.7101,129.7,129.68,45.0]
[1725251491799,20.0,129.69,129.67,45.0]
[1725251492009,20.0,129.69,129.66,16.6414]
[1725251492687,20.0,129.69,129.66,18.18362956]
[1725251493199,20.0,129.69,129.66,16.6414]
[1725251493379,20.0,129.69,129.66,1.54227182]
[1725251493697,20.0,129.69,129.66,46.54227182]
[1725251493901,20.0,129.69,129.66,52.7124]
[1725251494675,20.0,129.7,129.67,9.25370311]
[1725251495004,28.76584485,129.75,129.68,46.54196213]
[1725251495005,7.7084,129.73,129.68,46.54196213]
[1725251495576,16.0115,129.77,129.68,70.9071]
[1725251495784,7.7069,129.76,129.71,7.7094]
[1725251495994,7.7069,129.76,129.72,45.0]
[1725251497007,27.7071,129.75,129.72,45.0]
[1725251499502,20.0,129.75,129.72,45.0]
[1725251499713,27.7058,129.78,129.73,9.24966313]
[1725251499882,27.7058,129.78,129.74,45.0]
[1725251500708,7.7059,129.77,129.74,45.0]
[1725251500904,20.0,129.76,129.74,45.0]
[1725251508789,20.0,129.76,129.74,46.54130057]
[1725251510897,20.0,129.76,129.74,52.7077]
[1725251511201,20.0,129.78,129.75,7.707]
[1725251511394,20.0,129.78,129.76,45.0]
[1725251516322,20.0,129.78,129.72,34.5106]
[1725251516511,7.7069,129.76,129.72,34.5106]
[1725251516712,20.0,129.75,129.72,34.5106]
[1725251516911,20.0,129.75,129.73,1.54141491]
[1725251517223,20.0,129.75,129.72,42.2194]
[1725251517424,20.0,129.76,129.72,42.2194]
[1725251517918,27.7067,129.76,129.72,42.2194]
[1725251518289,27.7067,129.76,129.73,1.54144361]
[1725251519000,27.7067,129.76,129.72,42.2194]
[1725251519189,27.7067,129.76,129.73,45.0]
[1725251524405,0.12549,129.75,129.69,35.8418]